Cogmind - Beta 12 @@@ ROGUE MODE // 2023.03.11 @ 23:02:25 Player: CatPlusPlus Result: Self-destructed Performance ------------- Evolutions (1) 500 Regions Visited (3) 600 Robots Destroyed (37) 185 Value Destroyed (847) 847 Prototype IDs (5) 100 Alien Tech Used (0) 0 Bonus (0) 0 TOTAL SCORE: 2232 Bonus ------- None Cogmind --------- Core Integrity 178/400 Matter 194/300 Energy 140/140 System Corruption 0% Temperature Danger (429) Movement Treading (160) Location -9/Materials Parts ------- > --- POWER (1) -------- Light Deuterium Engine > --- PROPULSION (2) --- Improved Treads Improved Treads > --- UTILITY (4) ------ Large Storage Unit Signal Interpreter > --- WEAPON (2) ------- Heavy Assault Rifle Heavy Assault Rifle > --- INVENTORY (15) --- Light Deuterium Engine Light Deuterium Engine Flight Unit Flight Unit Flight Unit Flight Unit Improved Heat Sink Small Storage Unit Medium Storage Unit Improved Terrain Scanner Target Analyzer Light Armor Plating Beam Rifle Rocket Launcher Peak State ------------ > --- POWER ------------ Light Deuterium Engine > --- PROPULSION ------- Improved Treads Improved Treads > --- UTILITY ---------- Large Storage Unit Signal Interpreter Medium Armor Plating Hardened Light Armor Plating > --- WEAPON ----------- Beam Rifle Heavy Assault Rifle > --- INVENTORY -------- Light Deuterium Engine Light Deuterium Engine Flight Unit Flight Unit Flight Unit Flight Unit Improved Heat Sink Small Storage Unit Medium Storage Unit Improved Terrain Scanner Target Analyzer Light Armor Plating Heavy Assault Rifle Rocket Launcher [Rating: 19] Favorites ----------- Power Light Nuclear Core Engine Ion Engine Power Core Light Nuclear Core Propulsion Light Treads Treads Light Treads Leg Aluminum Leg Utility Seismic Detector Device Seismic Detector Storage Large Storage Unit Processor Signal Interpreter Protection Hardened Light Armor Plating Weapon Assault Rifle Energy Gun Beam Rifle Ballistic Gun Assault Rifle Launcher Rocket Launcher Special Weapon Mining Laser Build | -11 -10 -10 -9 ------- Run | Jun Mat Min Mat Slots Evolved 2 | . . . 2 Power . | . . . . Propulsion . | . . . . Utility 2 | . . . 2 Weapon . | . . . . Parts Attached 38 | 4 8 4 22 Power 3 | . 1 . 2 Engine 2 | . . . 2 Core 1 | . 1 . . Reactor . | . . . . Propulsion 6 | 2 . . 4 Treads 6 | 2 . . 4 Leg . | . . . . Wheel . | . . . . Hover . | . . . . Flight . | . . . . Utility 9 | 1 1 2 5 Device 2 | 1 . 1 . Storage 2 | . 1 1 . Processor 1 | . . . 1 Hackware . | . . . . Protection 4 | . . . 4 Artifact . | . . . . Weapon 20 | 1 6 2 11 Energy Gun 5 | 1 1 . 3 Energy Cannon . | . . . . Ballistic Gun 6 | . 1 1 4 Ballistic Cannon . | . . . . Launcher 5 | . 3 1 1 Special Weapon 4 | . 1 . 3 Impact Weapon . | . . . . Slashing Weapon . | . . . . Piercing Weapon . | . . . . Special Melee Weapon . | . . . . Unidentified Prototypes . | . . . . Parts Lost 7 | . . . 7 Power . | . . . . Propulsion 2 | . . . 2 Utility 4 | . . . 4 Weapon 1 | . . . 1 Highest Loss Streak 3 | . . . 3 To Critical Strikes . | . . . . Average Slot Usage (%) 98 | . 100 100 97 Engine 3 | . 3 . 3 Core 9 | . 10 14 7 Treads 25 | . 28 28 21 Device 11 | . 14 14 7 Storage 12 | . 14 14 11 Processor 4 | . . . 11 Protection 5 | . . . 13 Energy Gun 5 | . 5 . 7 Ballistic Gun 10 | . 13 4 9 Launcher 3 | . 1 14 1 Special Weapon 6 | . 7 9 3 Naked Turns . | . . . . Heaviest Build 41 | 15 20 32 41 Greatest Support 46 | 40 40 40 46 Greatest Overweight (x) 11 | . . . 11 Average Overweight (x) . | . . . . Largest Inventory Capacity 15 | 8 10 15 15 Average Capacity 11 | 8 8 11 15 Most Carried 15 | 7 9 11 15 Average Carried 10 | 4 8 10 12 Final Capacity 15 | 8 10 15 15 Final Carried 14 | 6 9 11 14 Class Distribution -------------------- 80% | Mutant 19% | Scavenger-Mutant Dominant Class ---------------- Mutant | -10/Materials Mutant | -10/Mines Scavenger-Mutant | -9/Materials Resources | -11 -10 -10 -9 ----------- Run | Jun Mat Min Mat Matter Collected 830 | 252 216 90 272 Remotely . | . . . . Salvage Created 1150 | 77 403 72 598 Parts 84 | 5 27 15 37 Haulers Intercepted 1 | . 1 . . Recyclers Shooed 4 | 1 3 . . Parts Field Recycled . | . . . . Retrieved Matter . | . . . . Parts Self-Destructed . | . . . . Prevented . | . . . . Kills | -11 -10 -10 -9 ------- Run | Jun Mat Min Mat Combat Hostiles Destroyed 28 | . 10 5 13 Guns 16 | . 5 . 11 AOE 12 | . 5 5 2 Classes Destroyed 7 | 2 4 . 1 Tunneler 3 | 1 . 1 1 Hauler 1 | . 1 . . Recycler 3 | 1 1 . 1 Watcher 2 | . 2 . . Swarmer 12 | . 6 3 3 Grunt 12 | . 4 2 6 Sentry 4 | . . . 4 Best Kill Streak 5 | 2 3 3 5 Combat Bots Only 4 | . 3 3 4 Max Kills in Single Turn 3 | 1 2 3 2 Gunslinging 1 | . . . 1 Exploded 3 | . 2 3 2 Melee . | . . . . Uniques/NPCs Destroyed . | . . . . Combat | -11 -10 -10 -9 -------- Run | Jun Mat Min Mat Damage Taken 1567 | . 195 55 1317 Core 265 | . 18 25 222 Absorbed by Shields . | . . . . Core Remaining (%) 91 | 100 . 82 . Volleys Fired 125 | 4 45 8 68 Largest 2 | 2 2 1 2 Hottest 156 | 70 120 100 156 Shots Fired 191 | 8 70 8 105 Gun 152 | 8 55 2 87 Cannon . | . . . . Launcher 11 | . 4 4 3 Special 28 | . 11 2 15 Kinetic 88 | 4 38 2 44 Thermal 92 | 4 28 2 58 Explosive 11 | . 4 4 3 Electromagnetic . | . . . . Robot Hit Streak 13 | 7 12 1 13 Robot Miss Streak 9 | . 2 1 9 Penetration Max . | . . . . Secondary Targets 5 | . 1 . 4 Max Gunslinging Chain 1 | . 1 . 1 Shots Hit Robots 98 | 7 40 1 50 Core Hits 57 | 3 25 7 22 Critical Kills . | . . . . Critical Parts Destroyed . | . . . . Critical Strikes 8 | 1 5 . 2 Burn 8 | 1 5 . 2 Melee Attacks . | . . . . Impact . | . . . . Slashing . | . . . . Piercing . | . . . . Sneak Attacks . | . . . . Combat Hostiles . | . . . . Follow-up Attacks . | . . . . Damage Inflicted 2158 | 85 784 342 947 Guns 1383 | 85 493 12 793 Cannons . | . . . . Explosions 715 | . 231 330 154 Melee . | . . . . Ramming 36 | . 36 . . Kinetic 827 | 37 319 12 459 Thermal 580 | 48 198 . 334 Explosive 715 | . 231 330 154 Electromagnetic . | . . . . Impact . | . . . . Slashing . | . . . . Piercing . | . . . . Highest Corruption 2 | . 2 2 . Average Corruption 2 | . 2 2 . Corruption Purged . | . . . . Corruption Blocked . | . . . . Effects 12 | . 6 6 . Message Errors 3 | . 2 1 . Matter Fused 5 | . 2 3 . Heat Flow Errors 2 | . 1 1 . Parts Fused 1 | . . 1 . Data Loss (major) 1 | . 1 . . Overload Shots . | . . . . Overflow Damage 20 | . 6 14 . Projectiles . | . . . . Explosions 20 | . 6 14 . Melee . | . . . . Knockbacks . | . . . . Impact . | . . . . Kinetic . | . . . . Secondary . | . . . . Self-Inflicted Damage 96 | . . 57 39 Shots 3 | . . 2 1 Rammed 9 | . 9 . . Targets Rammed 9 | . 9 . . Kicked . | . . . . Crushed . | . . . . Highest Temperature 434 | 56 299 195 434 Average Temperature 82 | 30 50 66 101 Received Heat Transfer 594 | . 81 . 513 Effects 7 | . . . 7 Shutdowns 1 | . . . 1 Energy Bleed 3 | . . . 3 Interference 2 | . . . 2 Short Circuit 1 | . . . 1 Siege Activations . | . . . . Robots Corrupted . | . . . . Combat Hostiles . | . . . . Parts Fried . | . . . . Impact Corruptions . | . . . . Robots Melted . | . . . . Combat Hostiles . | . . . . Parts Melted 2 | . . . 2 Heat Transferred 2159 | 222 938 . 999 Parts Sabotaged . | . . . . Parts Stolen . | . . . . Parts Stripped . | . . . . Power Chain Reactions . | . . . . Missiles Intercepted . | . . . . Alert | -11 -10 -10 -9 ------- Run | Jun Mat Min Mat Peak Influence 269 | 10 195 190 269 Initial 31 | . 6 31 . Average 92 | 6 83 89 105 Maximum Alert Level 1 | . . . 1 Low Security (%) 96 | 100 100 100 91 Level 1 3 | . . . 8 Level 2 . | . . . . Level 3 . | . . . . Level 4 . | . . . . Level 5 . | . . . . High Security . | . . . . Max Security . | . . . . Squads Dispatched 7 | . 3 . 4 Investigation 3 | . 2 . 1 Extermination . | . . . . Reinforcement 4 | . 1 . 3 Assault . | . . . . Garrison . | . . . . Intercept . | . . . . Searches Triggered . | . . . . Construction Impeded . | . . . . Haulers Reinforced . | . . . . Active Scanning Responses . | . . . . Cargo Convoy Interrupts . | . . . . Stealth | -11 -10 -10 -9 --------- Run | Jun Mat Min Mat Distress Signals 3 | . 1 . 2 Communications Jammed . | . . . . Distress Signals . | . . . . Times Spotted 47 | . 20 2 25 Peak Tracking Total 11 | . 4 2 11 Tactical Retreats . | . . . . Traps | -11 -10 -10 -9 ------- Run | Jun Mat Min Mat Traps Triggered 1 | . 1 . . Indirectly . | . . . . Trap Hack Attempts . | . . . . Triggered . | . . . . Disarmed . | . . . . Reprogrammed . | . . . . Reused . | . . . . Traps Extracted . | . . . . Installed . | . . . . Triggered . | . . . . Machines | -11 -10 -10 -9 ---------- Run | Jun Mat Min Mat Machines Disabled 4 | . 2 . 2 Max in Single Turn 1 | . 1 . 1 Machines Repaired . | . . . . Machines Sabotaged . | . . . . Overloaded Fab Kills . | . . . . Hacking | -11 -10 -10 -9 --------- Run | Jun Mat Min Mat Machines Accessed 11 | . 6 . 5 Terminals 9 | . 5 . 4 Fabricators . | . . . . Repair Stations . | . . . . Recycling Units 2 | . 1 . 1 Scanalyzers . | . . . . Garrison Access . | . . . . Total Hacks 28 | . 15 . 13 Successful 14 | . 10 . 4 Failed 14 | . 5 . 9 Catastrophic 4 | . 3 . 1 Database Lockouts . | . . . . Manual 16 | . 9 . 7 Terminals 25 | . 13 . 12 Fabricators . | . . . . Repair Stations . | . . . . Recycling Units 3 | . 2 . 1 Scanalyzers . | . . . . Garrison Access . | . . . . Terminal Hacks 11 | . 8 . 3 Prototype ID Bank 3 | . 3 . . Branch Access Points 1 | . . . 1 Terminal Index 1 | . 1 . . Unreport Threat 1 | . . . 1 Locate Traps 3 | . 2 . 1 Hauler Manifests 1 | . 1 . . Zone Layout 1 | . 1 . . Fabricator Hacks . | . . . . Repair Station Hacks . | . . . . Recycling Unit Hacks 1 | . 1 . . Report Inventory 1 | . 1 . . Scanalyzer . | . . . . Garrison Access Hacks . | . . . . Unauthorized Hacks 2 | . 1 . 1 Terminals . | . . . . Fabricators . | . . . . Repair Stations . | . . . . Recycling Units 2 | . 1 . 1 Tunnel 2 | . 1 . 1 Scanalyzers . | . . . . Garrison Access . | . . . . Data Cores Recovered . | . . . . Used . | . . . . Hacking Detections 9 | . 5 . 4 Full Trace Events 1 | . 1 . . Feedback Events . | . . . . Feedback Blocked . | . . . . Robot Schematics Acquired . | . . . . Robots Built . | . . . . Authchips . | . . . . Time . | . . . . Total Robot Build Rating . | . . . . Part Schematics Acquired . | . . . . Parts Built . | . . . . Authchips . | . . . . Time . | . . . . Total Part Build Rating . | . . . . Parts Repaired . | . . . . Time . | . . . . Parts Recycled . | . . . . Recycled Matter . | . . . . Retrieved Matter . | . . . . Retrieved Components . | . . . . Parts Scanalyzed . | . . . . Part Schematics Acquired . | . . . . Parts Damaged . | . . . . Bothacking | -11 -10 -10 -9 ------------ Run | Jun Mat Min Mat Used RIF Installer . | . . . . Robots Hacked . | . . . . Non-combat . | . . . . Combat . | . . . . Robot Hacks Applied . | . . . . Relay Couplers Released . | . . . . Fabnet Peak Effective % . | . . . . Robots Rewired . | . . . . Allies Hacked . | . . . . Hacks Repelled . | . . . . Allies | -11 -10 -10 -9 -------- Run | Jun Mat Min Mat Total Allies . | . . . . Largest Group . | . . . . Highest-Rated Group . | . . . . Highest-Rated Ally . | . . . . Total Orders . | . . . . Ally Attacks . | . . . . Total Damage . | . . . . Kills . | . . . . Allies Corrupted . | . . . . Allies Melted . | . . . . Intel | -11 -10 -10 -9 ------- Run | Jun Mat Min Mat Robot Analysis Total . | . . . . Derelict Logs Recovered 2 | . . 2 . Drone Launches . | . . . . Drone Recoveries . | . . . . Exploration | -11 -10 -10 -9 ------------- Run | Jun Mat Min Mat Turns Passed 2937 | 45 1228 539 1125 Spaces Moved 1498 | 15 649 315 519 Core 2 | . . . 2 Treads 1496 | 15 649 315 517 Legs . | . . . . Wheels . | . . . . Hover . | . . . . Flight . | . . . . Fastest Speed 160 | 160 160 160 160 Average Speed 160 | 160 160 160 161 Slowest Speed 600 | 160 160 160 600 Overloaded Moves . | . . . . Propulsion Burnouts . | . . . . Robots Hopped . | . . . . Cave-ins Triggered . | . . . . Exploration Rate (%) 54 | 3 90 71 54 Regions Visited 3 Branch Regions 1 Pre-discovered Areas 2 | . 1 . 1 Known Exits Taken . | . . . . Unknown Exits Taken 3 | 1 1 1 . Scrap Searched 1 | . . 1 . Spaces Dug 17 | . 3 2 12 Terrain Destroyed 104 | . 21 41 42 Melee . | . . . . Projectile 19 | . 4 2 13 AOE 85 | . 17 39 29 Terrain Rammed . | . . . . Walls Destroyed . | . . . . Machines Disabled . | . . . . Actions | -11 -10 -10 -9 --------- Run | Jun Mat Min Mat Total 1777 | 29 740 339 669 Wait 58 | . 21 7 30 Move 1495 | 14 648 314 519 Hop . | . . . . Pick Up 27 | 3 5 3 16 Fast Attach 6 | 1 1 . 4 Attach 4 | 1 . . 3 Detach 1 | 1 . . . Swap 28 | 2 7 4 15 Drop 24 | 3 4 3 14 Fire 125 | 4 45 8 68 Melee . | . . . . Ram . | . . . . Kick . | . . . . Crush 9 | . 9 . . Escape Stasis . | . . . . Rewire . | . . . . Trap . | . . . . Miscellaneous . | . . . . Route ------- -11/Junkyard -10/Materials (discovered 4 exits: *Mat x3 / [*Min]) -10/Mines -9/Materials (discovered 3 exits: [*Mat x2] / Min) History --------- Turn | Location | Event 16 | -11/Junkyard | Discovered new exit (range 2) 46 | -11/Junkyard | Entered Materials 271 | -10/Materials | Discovered new exit (range 6) 315 | -10/Materials | Build established: Mutant 353 | -10/Materials | Discovered new exit (range 16) 673 | -10/Materials | Discovered new exit (range 16) 825 | -10/Materials | Discovered new exit (range 13) 1274 | -10/Materials | Entered Mines 1298 | -10/Mines | Learned Materials terminal intel 1360 | -10/Mines | Received a Rocket Launcher from a helpful Derelict 1668 | -10/Mines | Discovered new exit (range 7) 1713 | -10/Mines | Learned Materials terminal intel 1813 | -10/Mines | Entered Materials 1813 | -9/Materials | Evolved 2 slots: Utility x2 1814 | -9/Materials | Loaded intel: 12 terminal locations 2293 | -9/Materials | Discovered new exit (range 5) 2468 | -9/Materials | Build established: Scavenger-Mutant 2476 | -9/Materials | Identified exit to Mines 2640 | -9/Materials | Lost 3 parts (2n1w) 2843 | -9/Materials | Discovered new exit (range 9) 2937 | -9/Materials | Core integrity fell below 50% 2938 | -9/Materials | Self-destructed Last Messages --------------- 02872_ K-01 Serf cleans the Terminal. 02892_ Critical hit (Burn: +37). 02896_ ALERT: Hostiles spotted, dispatching reinforcements to Terminal M010. 02901_ G-34 Mercenary destroyed. 02907_ G-34 Mercenary suffers critical hit (Burn). 02913_ Electrolysis Chamber disabled. 02919_ Hvy. Assault Rifle melted. 02919_ Y-45 Defender destroyed. 02919_ Switching to secondary target: G-34 Mercenary. 02922_ Lgt. Armor Plating destroyed. 02924_ Critical hit (Burn: +37). 02929_ Overheating: System interference. 02929_ Beam Rifle temporarily disabled. 02929_ Hvy. Assault Rifle temporarily disabled. 02930_ Med. Armor Plating destroyed. 02933_ Power failure, Lgt. Deuterium Engine shutdown. 02934_ Hrd. Light Armor Plating destroyed. 02937_ Hvy. Assault Rifle broken. 02937_ Overheating: Short circuit. Map ----- +----------------------------------------------------+ | ?????????????????????????????????????# | | ??????????????????????????????#??? | | ?????????????????????????????## ######## | | ???????????????""???? ? #??????# | | ???????????????"T??# #??????# | | ???????????????""??# ? #??????# | | ???????????????????# ######## | | ???????????????????# # T #! | | ???????????????????# # #% | | ???????????????????# """ """ """ # """ + | | ???????????????????# """ """ """ # """ # | | ???????????????????# """ """ """ # """ # | | ???????????????????# # # | | ???????????????????# ######## | | ???????????????????# """ """ != #??????# | | ???????????????????# """ """ != ####???# | | ???????????????????# """ """ == ##### | | ???????????????????# | | ???????????????????# | | ???????????????????# #######+########## | | ???????????????????# ## #??????# | | ???????????????????# ##"" !#??????# | | ???????????????????# ##"T #??????# | | ???????????????????# ##""ggY ##?????# ###### | | ???????????????????# %Y!%g w + ?????# ????? | | ???????????????????# ##@ ""Y #!??""?# ???? | | ???????????????????# ### """ #!??T"?+ !??? | | ?????????????????? ??# """ #? ?""?# ???? | | ???????????????? ??# #? ???# < !??? | | ???????????????#######??#### #####?? ???# !??? | | ????????????????????????????##??????##??#######??? | | ?????????????????????????????????????????????????? | | ?????????????????????????????????????????????????? | | ?????????????????????????????????????????????????? | | ?????????????????????????????????????????????????? | | ?????????????????????????????????????????????????? | | ?????????????????????????????????????????????????? | | ?????????????????????????????????????????????????? | | | | | | | | | | | | | | | | | | | | | | | | | +----------------------------------------------------+ Best States ------------- Heat Dissipation 28 Energy Generation 14 Energy Capacity 250 Matter Stores 300 Matter Capacity 300 Sight Range 16 Terrain Scan Density 10 Armor Coverage 375 Evasion (%) 40 Recoil Reduction 2 Item Schematics ----------------- None Robot Schematics ------------------ None Fabricated ------------ Nothing Alien Tech Used ----------------- None Achievements -------------- None Challenges ------------ None Game ------ Seed BiocellSubatomicGuard Manual? 0 Play Time 00:25:08 Cumulative 20.3 hours Start 2023.03.11 @ 22:37:57 End 2023.03.11 @ 23:02:25 Sessions 1 Manual Loads 0 Difficulty Rogue Special Mode None Game No. 14 Rogue 14 Adventurer 0 Explorer 0 Win Type - Total 0 Types 0/0/0/0/0/0/0/0/0 Lore% 17 Gallery% 24 Achievement% 19 Wizard Run 0 Options --------- ASCII 0 Keyboard 1 Movement Numpad Keybinds 0 Fullscreen 2 Font 24/Terminus Map View 76x50 Tactical HUD 1 Map Filters NONE Filters NONE Steam 1 RUN: f55b5e90-1175-4628-a05f-5a5c60642100